bitfinex-derivatives/quotes_SOLF0:USTF0_20260218
["timestamp","ask_amount","ask_price","bid_price","bid_amount"]
[1771425081908,14.92569725,82.439,82.356,14.93682531]
[1771425082103,6.3215183,82.44,82.368,14.93682531]
[1771425082302,14.92569725,82.439,82.368,14.93682531]
[1771425082506,6.3215183,82.42,82.348,14.93682531]
[1771425082701,6.3215183,82.42,82.357,14.93682531]
[1771425082905,6.3215183,82.44,82.357,14.93682531]
[1771425083106,6.3215183,82.44,82.374,14.93682531]
[1771425083809,6.3215183,82.44,82.385,10.9291]
[1771425084204,6.3215183,82.44,82.374,14.93682531]
[1771425084205,17.2434183,82.44,82.374,25.86742531]
[1771425084616,6.3215183,82.42,82.354,14.93682531]
[1771425085016,6.3215183,82.4,82.333,14.93682531]
[1771425085319,6.3215183,82.42,82.341,14.93682531]
[1771425085709,6.3215183,82.42,82.343,14.93682531]
[1771425085906,6.3215183,82.42,82.365,10.9318]
[1771425086313,6.3215183,82.42,82.344,105.92]
[1771425086314,10.9222,82.438,82.362,14.93682531]
[1771425086511,14.92569725,82.439,82.362,14.93682531]
[1771425086713,21.24721555,82.48,82.381,14.93682531]
[1771425086918,21.24721555,82.48,82.421,10.9243]
[1771425087121,14.92569725,82.479,82.421,10.9243]
[1771425088310,14.92569725,82.479,82.43,10.9231]
[1771425088511,6.3215183,82.5,82.421,14.93682531]
[1771425088910,6.3215183,82.55,82.441,14.93682531]
[1771425088911,6.3215183,82.52,82.441,14.93682531]
[1771425089220,6.3215183,82.52,82.443,14.93682531]
[1771425089415,14.92569725,82.53,82.481,10.9163]
[1771425089713,14.92569725,82.53,82.42,169.9362]
[1771425089714,14.92569725,82.519,82.44,6.3215183]
[1771425089917,14.92569725,82.542,82.481,14.93682531]
[1771425090112,6.3215183,82.55,82.481,14.93682531]
[1771425090309,14.92569725,82.563,82.481,14.93682531]
[1771425090517,14.92569725,82.563,82.511,10.9125]
[1771425090820,6.3215183,82.58,82.501,14.93682531]
[1771425091116,21.7914,82.639,82.5,6.3215183]
[1771425091117,14.92569725,82.609,82.54,6.3215183]
[1771425091418,14.92569725,82.599,82.53,6.3215183]
[1771425091808,6.3215183,82.61,82.531,14.93682531]
[1771425092015,6.3215183,82.6,82.531,14.93682531]
[1771425092313,6.3215183,82.62,82.551,14.93682531]
[1771425092514,14.92569725,82.634,82.551,14.93682531]
[1771425092917,14.92569725,82.634,82.573,10.9042]
[1771425093314,10.8942,82.65,82.56,10.9059]
[1771425093315,14.92569725,82.619,82.56,10.9059]
[1771425093520,14.92569725,82.619,82.53,6.3215183]
[1771425093820,14.92569725,82.619,82.531,14.93682531]
[1771425094021,14.92569725,82.619,82.548,10.9075]
[1771425094216,14.92569725,82.619,82.531,14.93682531]
[1771425094623,14.92569725,82.619,82.559,10.9061]
[1771425094924,14.92569725,82.619,82.551,14.93682531]
[1771425095226,14.92569725,82.599,82.529,14.93682531]
[1771425095615,14.92569725,82.599,82.506,14.93682531]
[1771425095926,14.92569725,82.579,82.506,14.93682531]
[1771425096229,14.92569725,82.579,82.512,10.9123]
[1771425096417,14.92569725,82.559,82.482,14.93682531]
[1771425096723,14.92569725,82.539,82.472,10.9175]
[1771425096922,14.92569725,82.539,82.46,21.25834361]
[1771425096923,14.92569725,82.539,82.461,14.93682531]
[1771425097325,14.92569725,82.539,82.495,10.9146]
[1771425097529,14.92569725,82.539,82.461,14.93682531]
[1771425098021,14.92569725,82.539,82.482,10.9162]
[1771425098220,6.3215183,82.55,82.481,14.93682531]
[1771425098425,14.92569725,82.567,82.481,14.93682531]
[1771425099122,14.92569725,82.567,82.509,10.9128]
[1771425099327,14.92569725,82.594,82.52,21.25834361]
[1771425099624,6.3215183,82.65,82.52,21.25834361]
[1771425099625,14.92569725,82.616,82.521,14.93682531]
[1771425099828,14.92569725,82.616,82.54,6.3215183]
[1771425100119,14.92569725,82.616,82.541,14.93682531]
[1771425100328,6.3215183,82.64,82.564,14.93682531]
[1771425100520,6.3215183,82.64,82.548,169.6745]
[1771425100521,1.938e-05,82.645,82.581,14.93682531]
[1771425100924,1.938e-05,82.645,82.601,14.93682531]
[1771425101232,2.10576635,82.702,82.621,14.93682531]
[1771425101527,6.3215183,82.68,82.6,6.3215183]
[1771425101717,6.3215183,82.68,82.55,6.3215183]
[1771425101718,6.3215183,82.66,82.58,6.3215183]
[1771425101918,171.44466577,82.712,82.529,191.5321]
[1771425101919,15.37984895,82.67,82.576,14.93682531]
[1771425102225,15.37984895,82.68,82.581,14.93682531]
[1771425102420,13.47411116,82.679,82.581,14.93682531]
[1771425102626,13.47411116,82.679,82.612,10.8991]
[1771425102929,13.47411116,82.669,82.575,14.93682531]
[1771425103420,171.44406577,82.712,82.525,169.7203]
[1771425103421,13.47414053,82.649,82.565,14.93682531]
[1771425103824,13.47719549,82.636,82.565,14.93682531]
[1771425104016,13.97300237,82.658,82.565,14.93682531]
[1771425104221,15.37984895,82.67,82.605,10.9]
[1771425104522,13.97602224,82.679,82.595,14.93682531]
[1771425104723,13.97602224,82.659,82.573,14.93682531]
[1771425105322,15.37984895,82.64,82.561,10.9058]
[1771425105520,13.96301462,82.655,82.552,14.38837882]
[1771425105727,15.37984895,82.68,82.571,14.38837882]
[1771425106023,13.96301462,82.654,82.58,10.9033]
[1771425106225,13.96301462,82.639,82.571,14.38837882]
[1771425106419,13.96301462,82.639,82.571,25.29287882]
[1771425106616,13.96301462,82.639,82.548,14.38837882]
[1771425107029,13.96301462,82.637,82.571,10.9045]
[1771425107230,13.96301462,82.637,82.548,14.38837882]
[1771425107620,13.96301462,82.637,82.57,10.9046]
[1771425107826,13.96301462,82.659,82.571,14.38837882]
[1771425108228,15.37984895,82.65,82.583,10.9029]
[1771425108526,13.96301462,82.649,82.583,10.9029]
[1771425108722,13.96301462,82.649,82.571,14.38837882]
[1771425108723,13.96301462,82.669,82.571,14.38837882]
[1771425108919,15.37984895,82.65,82.571,14.38837882]
[1771425109129,13.96301462,82.649,82.571,14.38837882]
[1771425109326,13.96301462,82.648,82.571,14.38837882]
[1771425109624,13.96301462,82.648,82.547,14.38837882]
[1771425109826,13.96301462,82.659,82.551,14.38837882]
[1771425110224,13.96301462,82.638,82.569,10.9048]
[1771425110423,13.96301462,82.619,82.531,14.38837882]
[1771425110619,13.96301462,82.599,82.531,14.38837882]
[1771425110825,10.9011,82.598,82.534,10.9094]
[1771425111025,13.96301462,82.599,82.534,10.9094]
[1771425111536,13.96301462,82.568,82.491,14.38837882]
[1771425111729,13.96301462,82.589,82.491,14.38837882]
[1771425111935,13.96301462,82.576,82.509,10.9127]
[1771425112129,13.96301462,82.576,82.491,14.38837882]
[1771425112525,15.37984895,82.59,82.491,14.38837882]
[1771425112526,13.96301462,82.569,82.491,14.38837882]
[1771425112722,15.37984895,82.59,82.491,14.38837882]
[1771425113130,13.96301462,82.589,82.491,14.38837882]
[1771425113436,13.96301462,82.589,82.493,14.38837882]
[1771425113727,15.37984895,82.61,82.524,14.38837882]
[1771425113929,13.96301462,82.609,82.524,14.38837882]
[1771425114722,13.96301462,82.637,82.545,14.38837882]
[1771425115227,13.96301462,82.637,82.577,10.9038]
[1771425115539,15.37984895,82.68,82.572,14.38837882]
[1771425115728,13.96301462,82.679,82.572,14.38837882]
[1771425116031,10.8916,82.67,82.574,14.38837882]
[1771425116231,13.96301462,82.679,82.574,14.38837882]
[1771425116434,13.96301462,82.673,82.574,14.38837882]
[1771425116734,13.96301462,82.659,82.574,14.38837882]
[1771425117432,14.35441226,82.653,82.574,14.38837882]
[1771425117729,14.35441226,82.639,82.541,14.35375082]
[1771425117928,14.35441226,82.639,82.576,10.9038]
[1771425118326,14.35441226,82.639,82.563,14.35375082]
[1771425118525,14.35441226,82.659,82.563,14.35375082]
[1771425119034,14.35441226,82.636,82.563,14.35375082]
[1771425119424,14.35441226,82.636,82.541,14.35375082]
[1771425119634,14.35441226,82.636,82.56,10.906]
[1771425120037,14.35441226,82.636,82.542,14.35375082]
[1771425120236,14.35441226,82.652,82.572,14.35375082]
[1771425120538,14.35441226,82.639,82.549,14.35375082]
[1771425120731,10.8972,82.627,82.56,10.9059]
[1771425120931,14.35441226,82.619,82.528,14.35375082]
[1771425121137,15.37984895,82.58,82.506,14.35375082]
[1771425121439,14.35441226,82.587,82.506,14.35375082]
[1771425121742,169.5094,82.629,82.46,169.8555]
[1771425121743,14.35441226,82.569,82.475,14.35375082]
[1771425121929,14.35441226,82.519,82.42,6.2976248]
[1771425122236,6.2976248,82.5,82.43,14.35375082]
[1771425122427,14.35441226,82.519,82.431,14.35375082]
[1771425122630,6.2976248,82.55,82.431,14.35375082]
[1771425122829,169.571,82.599,82.451,14.35375082]
[1771425122830,14.35441226,82.529,82.451,14.35375082]
[1771425123535,14.35441226,82.509,82.427,14.35375082]
[1771425123747,6.2976248,82.51,82.386,170.0074]
[1771425123748,14.35441226,82.549,82.441,14.35375082]
[1771425123940,23.1423068,82.54,82.441,14.35375082]
[1771425124243,14.35441226,82.539,82.441,14.35375082]
[1771425124442,14.35441226,82.519,82.441,14.35375082]
[1771425125338,23.1423068,82.54,82.441,14.35375082]
[1771425125542,14.35441226,82.543,82.478,10.9168]
[1771425125741,23.1423068,82.56,82.472,14.35375082]
[1771425126042,14.35441226,82.566,82.516,10.9118]
[1771425126242,10.9031,82.583,82.516,10.9118]
[1771425126440,14.35441226,82.582,82.491,14.35375082]
[1771425126642,14.35441226,82.579,82.491,14.35375082]
[1771425126943,14.35441226,82.559,82.47,23.1423068]
[1771425127140,14.35441226,82.559,82.471,14.35375082]
[1771425127541,14.35441226,82.559,82.492,10.915]
[1771425127941,14.35441226,82.559,82.471,14.35375082]
[1771425128244,14.35441226,82.579,82.498,14.35375082]
[1771425128443,14.35441226,82.579,82.471,14.35375082]
[1771425128746,14.35441226,82.577,82.47,37.49605762]
[1771425129039,23.1423068,82.58,82.471,14.35375082]
[1771425129040,14.35441226,82.575,82.471,14.35375082]
[1771425129435,14.35441226,82.575,82.502,10.9137]
[1771425129640,14.35441226,82.575,82.471,14.35375082]
[1771425129841,14.35441226,82.553,82.471,14.35375082]
[1771425130036,76.3,82.552,82.471,14.35375082]
[1771425130236,14.35441226,82.519,82.425,14.35375082]
[1771425130436,14.35441226,82.512,82.425,14.35375082]
[1771425130836,23.1423068,82.52,82.425,14.35375082]
[1771425130837,14.35441226,82.511,82.425,14.35375082]
[1771425131238,90.65441226,82.511,82.425,14.35375082]
[1771425131542,14.35441226,82.509,82.425,14.35375082]
[1771425131936,169.683,82.544,82.367,170.0471]
[1771425131937,14.35441226,82.499,82.4,23.1423068]
[1771425132142,14.35441226,82.479,82.4,14.35375082]
[1771425132339,14.35441226,82.501,82.401,14.35375082]
[1771425132545,14.35441226,82.501,82.421,14.35375082]
[1771425132743,22.23471966,82.558,82.42,23.1423068]
[1771425132744,10.9111,82.522,82.457,10.9196]
[1771425133051,14.35441226,82.524,82.443,14.35375082]
[1771425133238,14.35441226,82.548,82.461,14.35375082]
[1771425133433,14.35441226,82.569,82.461,14.35375082]
[1771425133641,14.35441226,82.567,82.461,14.35375082]
[1771425133846,14.35441226,82.565,82.481,14.35375082]
[1771425134046,23.1423068,82.58,82.481,14.35375082]
[1771425134241,23.1423068,82.58,82.519,10.9114]
[1771425134439,14.35441226,82.586,82.502,14.35375082]
[1771425134635,14.35441226,82.559,82.461,14.35375082]
[1771425134837,14.02036142,82.557,82.488,10.9155]
[1771425135039,14.02036142,82.555,82.461,14.35375082]
[1771425135240,14.02036142,82.553,82.461,14.35375082]
[1771425135539,14.02036142,82.539,82.44,23.1423068]
[1771425135739,14.02036142,82.537,82.438,15.01844031]
[1771425135944,14.02036142,82.502,82.414,15.01844031]
[1771425136345,10.9174,82.474,82.418,10.9248]
[1771425136543,14.02036142,82.474,82.381,15.01844031]
[1771425137547,10.9189,82.463,82.404,10.9267]
[1771425137744,14.02036142,82.499,82.401,15.01844031]
[1771425137947,23.1423068,82.5,82.401,15.01844031]
[1771425137948,14.02036142,82.497,82.401,15.01844031]
[1771425138336,10.9162,82.484,82.418,10.9248]
[1771425138846,23.1423068,82.5,82.418,10.9248]
[1771425138847,10.9167,82.48,82.418,10.9248]
[1771425139050,14.02036142,82.483,82.401,15.01844031]
[1771425139546,14.02036142,82.494,82.401,15.01844031]
[1771425140043,14.02036142,82.519,82.425,15.01844031]
[1771425140342,23.1423068,82.54,82.441,15.01844031]
[1771425140544,23.1423068,82.54,82.464,15.01844031]
[1771425140748,14.02036142,82.538,82.441,15.01844031]
[1771425141153,14.02036142,82.529,82.441,15.01844031]
[1771425141749,14.02036142,82.549,82.441,15.01844031]
[1771425141947,14.02036142,82.549,82.461,15.01844031]
[1771425142145,14.02036142,82.549,82.482,15.01844031]
[1771425142750,14.02036142,82.573,82.503,15.01844031]
[1771425143155,14.02036142,82.595,82.503,15.01844031]
[1771425143348,14.02036142,82.569,82.481,15.01844031]
[1771425143542,14.02036142,82.567,82.461,15.01844031]
[1771425143752,10.9082,82.544,82.486,10.9158]
[1771425143955,14.02036142,82.558,82.461,15.01844031]
[1771425144256,14.02036142,82.558,82.42,36.41]
[1771425144257,14.02036142,82.549,82.44,23.1423068]
[1771425144441,14.02036142,82.548,82.441,15.01844031]
[1771425144647,14.02036142,82.548,82.461,15.01844031]
[1771425144845,14.02036142,82.571,82.525,10.9106]
[1771425145050,14.02036142,82.571,82.506,15.01844031]
[1771425145748,14.02036142,82.571,82.481,15.01844031]
[1771425145948,14.02036142,82.569,82.481,15.01844031]
[1771425146249,14.02036142,82.567,82.46,23.1423068]
[1771425146550,14.02036142,82.567,82.461,15.01844031]
[1771425146752,14.02036142,82.565,82.461,15.01844031]
[1771425147253,14.02036142,82.553,82.461,15.01844031]
[1771425147750,14.02036142,82.551,82.461,15.01844031]
[1771425147947,14.02036142,82.539,82.48,10.9165]
[1771425148147,14.02036142,82.539,82.461,15.01844031]
[1771425148552,14.02036142,82.539,82.48,10.9166]
[1771425148960,14.02036142,82.561,82.463,15.01844031]
[1771425149152,14.02036142,82.558,82.463,15.01844031]
[1771425149454,14.02036142,82.549,82.463,15.01844031]
[1771425149853,14.02036142,82.575,82.487,15.01844031]
[1771425150049,23.1423068,82.59,82.492,15.01844031]
[1771425150251,14.02036142,82.598,82.501,15.01844031]
[1771425150545,14.02036142,82.592,82.523,15.01844031]
[1771425150854,23.1423068,82.61,82.549,10.9074]
[1771425151058,14.02036142,82.592,82.501,15.01844031]
[1771425151454,23.1423068,82.61,82.522,15.01844031]
[1771425151663,14.02036142,82.615,82.522,15.01844031]
[1771425151956,10.9,82.606,82.547,10.9077]
[1771425152153,14.02036142,82.615,82.522,15.01844031]
[1771425152546,14.02036142,82.615,82.565,10.9053]
[1771425152749,99.4623068,82.63,82.565,10.9053]
[1771425153259,14.02036142,82.609,82.521,15.01844031]
[1771425153453,14.02036142,82.607,82.521,15.01844031]
[1771425153646,14.02036142,82.605,82.521,15.01844031]
[1771425153850,14.02036142,82.602,82.544,10.9081]
[1771425154054,14.02036142,82.602,82.521,15.01844031]
[1771425154451,14.02036142,82.599,82.501,15.01844031]
[1771425154655,14.02036142,82.589,82.501,15.01844031]
[1771425154856,14.02036142,82.587,82.501,15.01844031]
[1771425155047,14.02036142,82.585,82.526,10.9104]
[1771425155251,14.02036142,82.583,82.501,15.01844031]
[1771425155650,14.02036142,82.605,82.525,15.01844031]
[1771425156358,14.02036142,82.629,82.527,169.7159]
[1771425156562,14.02036142,82.629,82.541,15.01844031]
[1771425156854,14.02036142,82.613,82.541,15.01844031]
[1771425157061,14.02036142,82.599,82.52,15.01844031]
[1771425157259,14.02036142,82.587,82.527,10.9104]
[1771425157565,14.02036142,82.585,82.501,15.01844031]
[1771425157860,14.02036142,82.579,82.507,10.913]
[1771425158060,14.02036142,82.577,82.507,10.913]
[1771425158257,14.02036142,82.575,82.475,15.01844031]
[1771425158461,14.02036142,82.573,82.475,15.01844031]
[1771425158662,23.1423068,82.58,82.481,15.01844031]
[1771425158663,14.02036142,82.571,82.481,15.01844031]
[1771425159464,14.02036142,82.559,82.481,15.01844031]
[1771425159656,21.8014,82.601,82.481,15.01844031]
[1771425159657,14.02036142,82.575,82.481,15.01844031]
[1771425159863,14.02036142,82.559,82.481,15.01844031]
[1771425160061,14.02036142,82.557,82.481,15.01844031]
[1771425160656,23.1423068,82.58,82.502,15.01844031]
[1771425160965,14.02036142,82.586,82.502,15.01844031]
[1771425161368,23.1423068,82.6,82.524,15.01844031]
[1771425161560,10.27654661,82.599,82.524,15.01844031]
[1771425161766,24.29690803,82.598,82.524,15.01844031]
[1771425162067,10.27654661,82.597,82.524,15.01844031]
[1771425162260,14.02036142,82.595,82.524,15.01844031]
[1771425162460,24.29690803,82.594,82.524,15.01844031]
[1771425162662,14.02036142,82.592,82.524,15.01844031]
[1771425162858,11.11756797,82.613,82.524,15.01844031]
[1771425163065,14.02036142,82.636,82.541,15.01844031]
[1771425163366,14.02036142,82.634,82.541,15.01844031]
[1771425163567,10.28154581,82.633,82.541,15.01844031]
[1771425163761,10.8951,82.643,82.561,15.01844031]
[1771425163957,14.02036142,82.653,82.561,15.01844031]
[1771425164162,10.28152076,82.65,82.566,15.01844031]
[1771425164361,14.02036142,82.653,82.566,15.01844031]
[1771425164556,14.02036142,82.649,82.566,15.01844031]
[1771425164757,14.02036142,82.618,82.551,10.9071]
[1771425164956,14.23184689,82.616,82.545,15.01844031]
[1771425165172,14.23184689,82.638,82.545,15.01844031]
[1771425165462,14.23184689,82.636,82.545,15.01844031]
[1771425165667,14.23184689,82.634,82.545,15.01844031]
[1771425165868,10.8979,82.622,82.545,15.01844031]
[1771425166064,24.50799766,82.621,82.545,15.01844031]
[1771425166267,14.23184689,82.619,82.545,15.01844031]
[1771425166464,14.23184689,82.591,82.501,15.32571009]
[1771425166866,23.1423068,82.56,82.479,15.32571009]
[1771425167062,14.23184689,82.553,82.479,15.32571009]
[1771425167261,14.23184689,82.575,82.479,15.32571009]
[1771425167461,14.23184689,82.573,82.479,15.32571009]
[1771425167772,23.1423068,82.58,82.462,21.838]
[1771425167773,23.1423068,82.58,82.481,15.32571009]
[1771425167972,6.28832303,82.58,82.501,15.32571009]
[1771425168672,6.28832303,82.58,82.528,10.9101]
[1771425169061,6.28832303,82.58,82.501,15.32571009]
[1771425169265,14.23184689,82.579,82.501,15.32571009]
[1771425169467,14.23184689,82.599,82.501,15.32571009]
[1771425169667,6.28832303,82.58,82.501,15.32571009]
[1771425169863,14.23184689,82.559,82.476,15.32571009]
[1771425170064,6.28832303,82.58,82.491,15.32571009]
[1771425170475,14.23184689,82.579,82.491,15.32571009]
[1771425170774,6.28832303,82.54,82.469,15.32571009]
[1771425170973,6.28832303,82.52,82.477,10.917]
[1771425171275,6.28832303,82.52,82.447,15.32571009]
[1771425171276,20.52016992,82.52,82.447,15.32571009]
[1771425171470,76.28,82.534,82.43,6.28832303]
[1771425171471,6.28832303,82.5,82.43,6.28832303]
[1771425171666,20.52016992,82.5,82.425,15.32571009]
[1771425171862,20.52016992,82.5,82.387,170.0058]
[1771425171863,6.28832303,82.48,82.402,15.32571009]
[1771425172066,6.28832303,82.5,82.426,15.32571009]
[1771425172474,6.28832303,82.52,82.441,15.32571009]
[1771425172673,6.28832303,82.5,82.441,15.32571009]
[1771425173074,6.28832303,82.5,82.443,10.9214]
[1771425173267,14.23184689,82.499,82.418,15.32571009]
[1771425173474,6.28832303,82.48,82.418,15.32571009]
[1771425174173,6.28832303,82.52,82.431,15.32571009]
[1771425174374,14.23184689,82.518,82.431,15.32571009]
[1771425174674,14.23184689,82.499,82.43,6.28832303]
[1771425174881,14.23184689,82.497,82.411,15.32571009]
[1771425175179,6.28832303,82.51,82.431,15.32571009]
[1771425175478,6.28832303,82.51,82.447,10.9209]
[1771425175680,6.28832303,82.51,82.431,15.32571009]
[1771425175882,14.23184689,82.52,82.451,15.32571009]
[1771425176678,14.23184689,82.52,82.468,10.9181]
[1771425176978,14.23184689,82.541,82.451,15.32571009]
[1771425177175,6.28832303,82.53,82.451,15.32571009]
[1771425177480,14.2702449,82.529,82.451,15.32571009]
[1771425177679,14.2702449,82.527,82.451,15.32571009]
[1771425177874,14.2702449,82.509,82.428,14.78518148]
[1771425178174,14.90429419,82.55,82.404,169.9706]
[1771425178175,14.2702449,82.533,82.431,14.78518148]
[1771425178372,23.15234074,82.54,82.43,23.15234074]
[1771425178373,14.2702449,82.531,82.433,14.78518148]
[1771425178579,14.2702449,82.519,82.433,14.78518148]
[1771425178770,14.2702449,82.499,82.41,14.78518148]
[1771425178972,14.2702449,82.492,82.425,10.9238]
[1771425179279,14.2702449,82.492,82.41,14.78518148]
[1771425180370,14.2702449,82.492,82.411,14.78518148]
[1771425180570,10.9175,82.474,82.411,14.78518148]
[1771425180773,23.15234074,82.46,82.389,14.78518148]
[1771425181085,14.2702449,82.474,82.389,14.78518148]
[1771425181379,76.34,82.49,82.393,169.9937]
[1771425181582,14.2702449,82.518,82.411,14.78518148]
[1771425181874,14.2702449,82.518,82.41,23.15234074]
[1771425181875,14.2702449,82.518,82.441,14.78518148]
[1771425182176,14.2702449,82.518,82.414,21.8507]
[1771425182177,14.2702449,82.54,82.451,14.78518148]
[1771425182379,14.2702449,82.538,82.451,14.78518148]
[1771425182681,14.2702449,82.536,82.451,14.78518148]
[1771425182867,14.2702449,82.517,82.426,109.46]
[1771425183174,14.2702449,82.517,82.41,23.15234074]
[1771425183175,14.2702449,82.515,82.427,14.78518148]
[1771425183377,10.28317324,82.514,82.43,14.78518148]
[1771425183572,14.2702449,82.513,82.43,14.78518148]
[1771425183773,14.2702449,82.511,82.43,14.78518148]
[1771425183977,14.2702449,82.533,82.441,14.78518148]
[1771425184175,76.34,82.554,82.453,14.78518148]
[1771425184380,14.2702449,82.557,82.479,14.78518148]
[1771425184578,23.15234074,82.6,82.499,169.7742]
[1771425184779,394.72825329,82.592,82.531,14.78518148]
[1771425185074,14.2702449,82.591,82.509,109.76]
[1771425185272,23.15234074,82.58,82.507,14.78518148]
[1771425185478,348.21845329,82.592,82.511,14.78518148]
[1771425185671,348.21845329,82.592,82.513,14.78518148]
[1771425186073,14.2702449,82.589,82.513,14.78518148]
[1771425186377,348.21845329,82.592,82.513,14.78518148]
[1771425187578,14.2702449,82.638,82.536,14.78518148]
[1771425187883,14.2702449,82.619,82.514,14.78518148]
[1771425188093,14.2702449,82.599,82.514,14.78518148]
[1771425188277,14.2702449,82.599,82.49,37.23026143]
[1771425188278,14.2702449,82.579,82.49,14.78518148]
[1771425188471,14.2702449,82.574,82.506,10.9131]
[1771425188778,14.2702449,82.574,82.49,14.78518148]
[1771425188983,14.2702449,82.559,82.464,14.78518148]
[1771425189186,14.2702449,82.557,82.464,14.78518148]
[1771425189381,14.2702449,82.555,82.47,15.39976143]
[1771425189576,22.35474309,82.592,82.449,169.8769]
[1771425189577,76.32,82.581,82.522,10.9109]
[1771425189782,15.39976143,82.59,82.499,14.78518148]
[1771425189982,14.2702449,82.593,82.501,14.78518148]
[1771425190180,14.2702449,82.581,82.476,14.78518148]
[1771425190380,14.2702449,82.569,82.476,14.78518148]
[1771425190679,14.2702449,82.557,82.489,10.9153]
[1771425190886,14.2702449,82.555,82.476,14.78518148]
[1771425191081,14.2702449,82.549,82.457,110.2]
[1771425191287,14.2702449,82.532,82.466,10.9184]
[1771425191584,29.67000633,82.55,82.454,14.78518148]
[1771425191779,29.67000633,82.55,82.486,10.9158]
[1771425191979,29.67000633,82.55,82.454,14.78518148]
[1771425192174,14.2702449,82.549,82.454,14.78518148]
[1771425192390,14.2702449,82.549,82.456,14.78518148]
[1771425193078,14.2702449,82.549,82.399,169.9809]
[1771425193079,14.2702449,82.509,82.433,14.78518148]
[1771425193279,14.2702449,82.489,82.39,15.39976143]
[1771425193475,169.7114,82.531,82.356,170.0693]
[1771425193476,15.39976143,82.47,82.391,14.78518148]
[1771425193674,14.2702449,82.469,82.391,14.78518148]
[1771425193878,15.39976143,82.49,82.391,14.78518148]
[1771425194086,15.39976143,82.49,82.393,14.78518148]
[1771425194289,14.2702449,82.488,82.415,10.9252]
[1771425194487,11.18609502,82.509,82.393,14.78518148]
[1771425194488,14.2702449,82.469,82.393,14.78518148]
[1771425195282,76.32,82.489,82.393,14.78518148]
[1771425195481,14.33432997,82.491,82.393,14.78518148]
[1771425195881,10.9168,82.479,82.417,10.9249]
[1771425196085,14.33432997,82.478,82.417,10.9249]
[1771425196280,14.33432997,82.478,82.393,14.78518148]
[1771425196483,14.33432997,82.466,82.402,10.9268]
[1771425196683,14.33432997,82.459,82.371,14.66653834]
[1771425197580,14.33432997,82.459,82.4,10.9271]
[1771425197777,14.33432997,82.459,82.371,14.66653834]
[1771425198176,14.33432997,82.459,82.387,10.9289]
[1771425198382,14.33432997,82.459,82.371,14.66653834]
[1771425198577,14.33432997,82.458,82.371,14.66653834]
[1771425199180,14.33432997,82.456,82.371,14.66653834]
[1771425199379,14.33432997,82.439,82.348,14.66653834]
[1771425199582,29.7340914,82.42,82.348,14.66653834]
[1771425199784,29.7340914,82.42,82.352,10.9335]
[1771425200188,90.67432997,82.438,82.348,14.66653834]
[1771425200381,14.33432997,82.436,82.349,25.60043834]
[1771425200581,14.33432997,82.436,82.349,14.66653834]
[1771425201182,15.39976143,82.46,82.371,14.66653834]
[1771425201383,15.39976143,82.48,82.381,14.66653834]
[1771425201590,14.33432997,82.484,82.419,10.9246]
[1771425201787,11.15781293,82.53,82.421,14.66653834]
[1771425201788,14.33432997,82.53,82.421,14.66653834]
[1771425201991,14.33432997,82.53,82.42,15.39976143]
[1771425201992,14.33432997,82.53,82.423,14.66653834]
[1771425202293,14.33432997,82.517,82.423,14.66653834]
[1771425202792,14.33432997,82.515,82.423,14.66653834]
[1771425203587,14.33432997,82.492,82.401,14.66653834]
[1771425203993,6.30124782,82.5,82.439,10.9219]
[1771425204197,6.30124782,82.5,82.421,14.66653834]
[1771425204391,20.63557779,82.53,82.441,14.66653834]
[1771425204596,10.9102,82.529,82.459,10.9194]
[1771425204998,14.33432997,82.489,82.412,14.66653834]
[1771425205188,10.9157,82.487,82.425,10.9238]
[1771425205391,169.7006,82.536,82.4,6.30124782]
[1771425205392,6.30124782,82.47,82.4,20.96778616]
[1771425205593,6.30124782,82.48,82.401,14.66653834]
[1771425206494,10.9168,82.479,82.41,10.9258]
[1771425206898,6.30124782,82.48,82.41,14.66653834]
[1771425207393,76.38,82.503,82.391,110.84]
[1771425207394,6.30124782,82.5,82.445,10.9212]
[1771425207590,14.33432997,82.509,82.445,10.9212]
[1771425208198,25.24742997,82.507,82.423,14.66653834]
[1771425208395,14.33432997,82.499,82.401,14.66653834]
[1771425208589,10.916,82.485,82.401,14.66653834]
[1771425208793,14.33432997,82.479,82.401,14.66653834]
[1771425209195,10.9172,82.476,82.415,10.9251]
[1771425209700,14.33432997,82.475,82.401,14.66653834]
[1771425209899,10.9177,82.472,82.401,14.66653834]
[1771425210289,14.33432997,82.498,82.401,14.66653834]
[1771425210495,14.33432997,82.498,82.433,10.9228]
[1771425210696,14.33432997,82.498,82.398,14.66653834]
[1771425210896,14.33432997,82.479,82.398,14.66653834]
[1771425211300,10.9187,82.464,82.402,10.9269]
[1771425211493,14.33432997,82.479,82.398,14.66653834]
[1771425211692,87.2946,82.496,82.43,10.9232]
[1771425211903,87.2946,82.496,82.382,110.78]
[1771425211904,14.33432997,82.494,82.401,14.66653834]
[1771425212102,14.33432997,82.479,82.401,14.66653834]
[1771425212606,14.33432997,82.499,82.404,14.66653834]